Cogmind - Beta 15 @@@ ROGUE MODE // 2025.05.21 @ 18:04:40 Player: Selene Result: Destroyed by Shrapnel Trap Performance ------------- Evolutions (0) 0 Regions Visited (2) 400 Robots Destroyed (27) 135 Value Destroyed (497) 497 Prototype IDs (0) 0 Alien Tech Used (0) 0 Bonus (0) 0 TOTAL SCORE: 1032 Bonus ------- None Cogmind --------- Core Integrity 0/250 Matter 300/300 Energy 168/170 System Corruption 0% Temperature Cool (0) Movement Rolling (120) Ox2 Location -10/Subcaves Parts ------- > --- POWER (1) -------- Makeshift Power Source > --- PROPULSION (2) --- Wheel Compact Wheel > --- UTILITY (2) ------ High-capacity Storage Unit Sensor Array > --- WEAPON (2) ------- Subdweller Beam Cannon Ripper > --- INVENTORY (20) --- Ion Engine Subdweller Power Source Wheel Subdweller Monowheel Subdweller Monowheel Subdweller Monowheel Heat Sink Huge Storage Unit Light Humpback Subdweller Optics Seismic Detector ECM Suite Propulsion Shielding Utility Shielding Small Laser Subdweller Beam Cannon Light Assault Rifle Flamer Peak State ------------ > --- POWER ------------ Makeshift Power Source > --- PROPULSION ------- Wheel Compact Wheel > --- UTILITY ---------- High-capacity Storage Unit Sensor Array > --- WEAPON ----------- Subdweller Beam Cannon Ripper > --- INVENTORY -------- Ion Engine Subdweller Power Source Wheel Subdweller Monowheel Subdweller Monowheel Subdweller Monowheel Heat Sink Huge Storage Unit Light Humpback Subdweller Optics Seismic Detector ECM Suite Propulsion Shielding Utility Shielding Small Laser Small Laser Subdweller Beam Cannon Light Assault Rifle [Rating: 16] Favorites ----------- Power Light Ion Engine Engine Light Ion Engine Propulsion Wheel Treads Light Treads Wheel Wheel Utility High-capacity Storage Unit Device Sensor Array Storage High-capacity Storage Unit Weapon Small Laser Energy Gun Small Laser Energy Cannon Subdweller Beam Cannon Ballistic Gun Light Assault Rifle Slashing Weapon Ripper Special Melee Weapon Datajack Build | -11 -10 -10 ------- Run | Yrd Mat Sub Slots Evolved . | . . . Power . | . . . Propulsion . | . . . Utility . | . . . Weapon . | . . . Parts Attached 33 | 7 22 4 Power 4 | 1 2 1 Engine 4 | 1 2 1 Core . | . . . Reactor . | . . . Propulsion 10 | 2 7 1 Treads 2 | . 2 . Leg . | . . . Wheel 8 | 2 5 1 Hover . | . . . Flight . | . . . Utility 9 | 2 7 . Device 4 | 1 3 . Storage 5 | 1 4 . Processor . | . . . Hackware . | . . . Protection . | . . . Artifact . | . . . Weapon 10 | 2 6 2 Energy Gun 3 | 2 1 . Energy Cannon 1 | . . 1 Ballistic Gun 4 | . 4 . Ballistic Cannon . | . . . Launcher . | . . . Special Weapon . | . . . Impact Weapon . | . . . Slashing Weapon 1 | . . 1 Piercing Weapon . | . . . Special Melee Weapon 1 | . 1 . Unidentified Prototypes . | . . . Parts Lost 6 | . 3 3 Power . | . . . Propulsion 2 | . 1 1 Utility 1 | . 1 . Weapon 3 | . 1 2 Highest Loss Streak 2 | . 2 2 To Critical Strikes . | . . . Average Backups 16 | 4 15 18 Power 1 | . 1 2 Propulsion 4 | 2 4 3 Utility 6 | . 5 7 Weapon 3 | 1 3 4 Tool/Special . | . . . Unused Backups 25 | . 9 16 Power 2 | . . 2 Propulsion 8 | . 4 4 Utility 10 | . 4 6 Weapon 5 | . 1 4 Tool/Special . | . . . Average Slot Usage (%) 99 | . 99 99 Engine 14 | . 14 14 Treads 2 | . 3 . Wheel 25 | . 24 27 Device 14 | . 14 14 Storage 14 | . 14 14 Energy Gun 14 | . 17 8 Ballistic Gun 10 | . 10 12 Slashing Weapon 1 | . . 5 Peak Build Rating 16 | 7 9 16 Average Rating 9 | 4 8 11 On Entrance 5 | . 7 9 Naked Turns . | . . . Heaviest Build 56 | 11 47 56 Greatest Support 40 | 26 40 26 Greatest Overweight (x) 2 | . 2 2 Average Overweight (x) . | . . 1 Largest Inventory Capacity 25 | 8 25 20 Average Capacity 17 | 7 17 20 Most Carried 20 | 8 20 20 Average Carried 17 | 4 16 19 Final Capacity 20 | 8 20 20 Final Carried 20 | 8 20 19 Class Distribution -------------------- 82% | Mutant 17% | Scavenger-Mutant Dominant Class ---------------- Mutant | -10/Materials Mutant | -10/Subcaves Resources | -11 -10 -10 ----------- Run | Yrd Mat Sub Matter Collected 671 | 270 324 77 Remotely . | . . . Salvage Created 861 | 96 716 49 Parts 57 | 8 49 . Haulers Intercepted 2 | . 2 . Recyclers Shooed 1 | 1 . . Parts Field Recycled . | . . . Retrieved Matter . | . . . Parts Self-Destructed . | . . . Prevented . | . . . Kills | -11 -10 -10 ------- Run | Yrd Mat Sub Combat Hostiles Destroyed 17 | . 17 . Guns 17 | . 17 . Classes Destroyed 9 | 2 6 1 Worker 2 | . 2 . Builder 1 | . 1 . Tunneler 2 | 2 . . Hauler 2 | . 2 . Recycler 1 | 1 . . Watcher 2 | . 2 . Swarmer 6 | . 6 . Grunt 11 | . 11 . Cobbler 1 | . . 1 Best Kill Streak 3 | 3 3 . Combat Bots Only 3 | . 3 . Max Kills in Single Turn 1 | 1 1 1 Gunslinging . | . . . Exploded . | . . . Melee . | . . . Uniques/NPCs Destroyed . | . . . Combat | -11 -10 -10 -------- Run | Yrd Mat Sub Hostile Shots Fired 98 | . 84 14 Missed 23 | . 18 5 Hits 75 | . 66 9 Projectile 75 | . 66 9 Damage Taken 1001 | . 638 363 Core 259 | . 113 146 Absorbed by Shields . | . . . Core Remaining (%) 100 | 100 . . Volleys Fired 111 | 6 90 15 Largest 2 | 2 2 2 Hottest 80 | 80 80 80 Shots Fired 217 | 12 179 26 Gun 213 | 12 179 22 Cannon 4 | . . 4 Launcher . | . . . Special . | . . . Kinetic 71 | . 60 11 Thermal 146 | 12 119 15 Explosive . | . . . Electromagnetic . | . . . Robot Hit Streak 15 | 5 15 14 Robot Miss Streak 5 | 1 5 1 Penetration Max . | . . . Secondary Targets 2 | . 2 . Max Gunslinging Chain 1 | . 1 . Shots Hit Robots 128 | 10 92 26 Core Hits 50 | 4 40 6 Critical Kills . | . . . Critical Parts Destroyed . | . . . Critical Strikes . | . . . Melee Attacks 19 | . . 19 Impact . | . . . Slashing 19 | . . 19 Piercing . | . . . Sneak Attacks 2 | . . 2 Combat Hostiles . | . . . Follow-up Attacks . | . . . Damage Inflicted 1547 | 110 983 454 Guns 1297 | 110 983 204 Cannons 101 | . . 101 Explosions . | . . . Melee 149 | . . 149 Ramming . | . . . Kinetic 361 | . 264 97 Thermal 1037 | 110 719 208 Explosive . | . . . Electromagnetic . | . . . Impact . | . . . Slashing 149 | . . 149 Piercing . | . . . Highest Corruption . | . . . Average Corruption . | . . . Corruption Purged . | . . . Corruption Blocked . | . . . Overload Shots . | . . . Overflow Damage 48 | . . 48 Projectiles 11 | . . 11 Explosions . | . . . Melee 37 | . . 37 Knockbacks . | . . . Impact . | . . . Kinetic . | . . . Secondary . | . . . Self-Inflicted Damage . | . . . Shots . | . . . Rammed . | . . . Targets Rammed . | . . . Kicked . | . . . Crushed . | . . . Highest Temperature 140 | 72 140 30 Average Temperature 38 | 32 40 15 Received Heat Transfer 303 | . 228 75 Siege Activations . | . . . Martial Activations . | . . . Shielding Activations . | . . . Robots Disrupted . | . . . Combat Hostiles . | . . . Robots Corrupted . | . . . Combat Hostiles . | . . . Parts Fried . | . . . Impact Corruptions . | . . . Robots Melted . | . . . Combat Hostiles . | . . . Parts Melted 2 | 2 . . Heat Transferred 2273 | 250 1625 398 Parts Sabotaged . | . . . Parts Stolen . | . . . Parts Stripped . | . . . Power Chain Reactions . | . . . Alert | -11 -10 -10 ------- Run | Yrd Mat Sub Maximum Alert Level . | . . . Low Security (%) 100 | 100 100 . Level 1 . | . . . Level 2 . | . . . Level 3 . | . . . Level 4 . | . . . Level 5 . | . . . High Security . | . . . Max Security . | . . . Peak Influence 112 | 10 112 . Initial . | . . . Average 53 | 1 56 . Influence Increases 628 | 15 613 . Destroy 0b10 Robot/C 340 | . 340 . Destroy 0b10 Robot/NC 50 | 15 35 . Destroy Leader 68 | . 68 . Successful Hack 5 | . 5 . Select Force Hacks 60 | . 60 . Lose Combat Pursuer 105 | . 105 . Influence Decreases 628 | 15 504 109 Entered New Map 53 | . . 53 Time Decay 545 | 15 474 56 Lost Part 30 | . 30 . Squads Dispatched 5 | . 5 . Investigation 3 | . 3 . Extermination . | . . . Reinforcement 2 | . 2 . Assault . | . . . Garrison . | . . . Intercept . | . . . Searches Triggered . | . . . Construction Impeded . | . . . Haulers Reinforced . | . . . Active Scanning Responses . | . . . Cargo Convoy Interrupts . | . . . Stealth | -11 -10 -10 --------- Run | Yrd Mat Sub Distress Signals 4 | . 4 . Communications Jammed . | . . . Distress Signals . | . . . Times Spotted 38 | . 34 4 Peak Tracking Total 5 | . 5 3 Tactical Retreats 5 | . 4 1 Traps | -11 -10 -10 ------- Run | Yrd Mat Sub Traps Triggered 4 | . 1 3 Indirectly . | . . . Trap Hack Attempts 9 | . 9 . Triggered . | . . . Disarmed 2 | . 2 . Reprogrammed 1 | . 1 . Reused . | . . . Traps Extracted . | . . . Installed . | . . . Triggered . | . . . Machines | -11 -10 -10 ---------- Run | Yrd Mat Sub Machines Disabled . | . . . Max in Single Turn . | . . . Machines Repaired . | . . . Machines Dismantled . | . . . Machines Sabotaged . | . . . Overloaded Fab Kills . | . . . Hacking | -11 -10 -10 --------- Run | Yrd Mat Sub Machines Accessed 10 | . 10 . Terminals 7 | . 7 . Fabricators . | . . . Repair Stations 1 | . 1 . Recycling Units 2 | . 2 . Scanalyzers . | . . . Garrison Access . | . . . Total Hacks 26 | . 26 . Successful 14 | . 14 . Failed 12 | . 12 . Catastrophic . | . . . Database Lockouts . | . . . Manual 17 | . 17 . Terminals 19 | . 19 . Fabricators . | . . . Repair Stations 1 | . 1 . Recycling Units 6 | . 6 . Scanalyzers . | . . . Garrison Access . | . . . Terminal Hacks 6 | . 6 . Robot Analysis 2 | . 2 . Locate Traps 2 | . 2 . Disarm Traps 1 | . 1 . Hauler Manifests 1 | . 1 . Fabricator Hacks . | . . . Repair Station Hacks . | . . . Recycling Unit Hacks 3 | . 3 . Retrieve Components 3 | . 3 . Scanalyzer . | . . . Garrison Access Hacks . | . . . Unauthorized Hacks 5 | . 5 . Terminals 2 | . 2 . Botnet 2 | . 2 . Fabricators . | . . . Repair Stations 1 | . 1 . Mechanics 1 | . 1 . Recycling Units 2 | . 2 . Tunnel 2 | . 2 . Scanalyzers . | . . . Garrison Access . | . . . Data Cores Recovered . | . . . Used . | . . . Hacking Detections 7 | . 7 . Full Trace Events . | . . . Feedback Events . | . . . Feedback Blocked . | . . . Robot Schematics Acquired . | . . . Robots Built . | . . . Authchips . | . . . Time . | . . . Total Robot Build Rating . | . . . Part Schematics Acquired . | . . . Parts Built . | . . . Authchips . | . . . Time . | . . . Total Part Build Rating . | . . . Parts Repaired . | . . . Time . | . . . Parts Recycled . | . . . Recycled Matter . | . . . Retrieved Matter . | . . . Retrieved Components 28 | . 28 . Parts Scanalyzed . | . . . Part Schematics Acquired . | . . . Parts Damaged . | . . . Bothacking | -11 -10 -10 ------------ Run | Yrd Mat Sub Used RIF Installer . | . . . Robots Hacked . | . . . Non-combat . | . . . Combat . | . . . Robot Hacks Applied . | . . . Relay Couplers Released . | . . . Fabnet Peak Effective % . | . . . Robots Rewired . | . . . Allies Hacked . | . . . Hacks Repelled . | . . . Allies | -11 -10 -10 -------- Run | Yrd Mat Sub Total Allies . | . . . Largest Group . | . . . Highest-Rated Group . | . . . Highest-Rated Ally . | . . . Total Orders . | . . . Ally Attacks . | . . . Total Damage . | . . . Kills . | . . . Allies Corrupted . | . . . Allies Melted . | . . . Intel | -11 -10 -10 ------- Run | Yrd Mat Sub Active Infowar (turns) 2475 | 16 1588 871 Sensors 1342 | . 1236 106 Seismic 1133 | 16 352 765 Robot Analysis Total 2 | . 2 . Derelict Logs Recovered 1 | . . 1 Drone Launches . | . . . Drone Recoveries . | . . . Exploration | -11 -10 -10 ------------- Run | Yrd Mat Sub Turns Passed 2659 | 110 1678 871 Spaces Moved 1893 | 71 1108 714 Core 3 | 3 . . Treads 69 | . 69 . Legs . | . . . Wheels 1821 | 68 1039 714 Hover . | . . . Flight . | . . . Fastest Speed 50 | 50 90 105 Average Speed 104 | 89 103 106 Slowest Speed 160 | 100 160 130 Overloaded Moves . | . . . Propulsion Burnouts . | . . . Robots Hopped . | . . . Potential Cave-ins . | . . . Cave-ins Triggered . | . . . Exploration Rate (%) 43 | 4 98 29 Regions Visited 2 Branch Regions 1 Pre-discovered Areas 3 | . 2 1 Known Exits Taken . | . . . Unknown Exits Taken 2 | 1 1 . Scrap Searched . | . . . Spaces Dug 3 | . . 3 Terrain Destroyed 3 | . . 3 Melee 3 | . . 3 Projectile . | . . . AOE . | . . . Terrain Rammed . | . . . Walls Destroyed . | . . . Machines Disabled . | . . . Actions | -11 -10 -10 --------- Run | Yrd Mat Sub Total 2349 | 102 1475 772 Wait 208 | 11 190 7 Move 1891 | 70 1107 714 Hop . | . . . Pick Up 43 | 8 29 6 Fast Attach 7 | 7 . . Attach 6 | . 3 3 Detach . | . . . Swap 24 | . 21 3 Drop 31 | . 26 5 Fire 111 | 6 90 15 Melee 19 | . . 19 Ram . | . . . Kick . | . . . Crush . | . . . Escape Stasis . | . . . Rewire . | . . . Trap 9 | . 9 . Miscellaneous . | . . . Route ------- -11/Scrapyard -10/Materials (discovered 6 exits: [*Mat x3] / [*Min x2] / [*Sub]) -10/Subcaves History --------- Turn | Location | Event 14 | -11/Scrapyard | Discovered new exit (range 15) 111 | -11/Scrapyard | Entered Materials 309 | -10/Materials | Build established: Mutant 376 | -10/Materials | Discovered new exit (range 8) 711 | -10/Materials | Derelicts attacked the area 716 | -10/Materials | Discovered new exit (range 13) 813 | -10/Materials | Discovered new exit (range 16) 966 | -10/Materials | Build established: Scavenger-Mutant 1001 | -10/Materials | Discovered new exit (range 13) 1198 | -10/Materials | Discovered new exit (range 7) 1654 | -10/Materials | Discovered new exit (range 10) 1675 | -10/Materials | Build established: Mutant 1789 | -10/Materials | Entered Subcaves 2079 | -10/Subcaves | Learned Materials terminal intel 2083 | -10/Subcaves | Learned location of Zion (-6) 2083 | -10/Subcaves | Met a Zionite searching for "candidates" 2130 | -10/Subcaves | Core integrity fell below 50% 2327 | -10/Subcaves | Shifting Twisted Machinery released Ripper 2330 | -10/Subcaves | Shifting Twisted Machinery released Mak. Power Source 2492 | -10/Subcaves | A swath of the cavern ceiling suddenly collapsed 2660 | -10/Subcaves | Destroyed by Shrapnel Trap Last Messages --------------- 02501_ Dropped Com. Wheel. 02501_ Acquired Sub. Monowheel. 02533_ Acquired 7 matter. 02558_ Triggered Piercing Trap. 02558_ Spikes shoot up from the floor. 02558_ Critical hit (Impale). 02558_ Assault Rifle destroyed. 02560_ Triggered Piercing Trap. 02560_ Spikes shoot up from the floor. 02560_ Critical hit (Impale). 02595_ Sneak attack on JX-KIL(O). 02609_ Destroyed Wheel. 02611_ JX-KIL(O) cries out in pain. 02611_ JX-KIL(O) destroyed. 02613_ Acquired 21 matter. 02615_ Dropped Sml. Laser. 02616_ Acquired Flamer. 02660_ Triggered Shrapnel Trap. 02660_ An expanding cloud of shrapnel blasts out in all directions. Map ----- +----------------------------------------------------+ | ????????????????????????# ### ## ## ## | | ????????????????????????## ###### | | ?????????????????????????# ###### | | ?????????????????????????# ## ## | | ?????????????????????????## ! ## ## ### | | ??????????????????????????## ### ## ##### | | ????????????????????????########## ##?## | | ????????????????????????#"###### ##### | | ????????????????????????#"#"#"# ## ### | | ???????????????##########"="""" ## ## | | ???????????????#"# " """"#"## | | ??????????????###""######"##"## ####### | | ??????????????#" ""### ######## ## ###???## | | ??????????????#"#""#?#?????#"??###### ####?# | | ??????????????### ##?#???###"#?????## ### | | ????????????????#"##%##?## ???### ### | | ????????????????# """ ### #### % ### | | ???????????????## [ ### ##?# | | ???????????????# #### #??##??# | | ???????????????# #####??## ##??????### | | ???????????????# ## ##?### ###???????### | | ???????????????## ### ##?????????# | | ????????????????### #??????????# | | ??????????????????# #???###????## | | ??????????????????# ## ## ##??# ##????#### | | ???????????????????### @###### ##?# ######??# | | ?????????????????????# #????# ### #??# | | ?????????????????????## ????## ##??# | | ??????????????????????## ?????# ## ##???# | | ???????????????????????### ????# ## ### ##????? | | ??????????????????????????#????########?###?????? | | ????????????????????????????????????????????????? | | ????????????????????????????????????????????????? | | ????????????????????????????????????????????????? | | ????????????????????????????????????????????????? | | ????????????????????????????????????????????????? | | ????????????????????????????????????????????????? | | ????????????????????????????????????????????????? | | ????????????????????????????????????????????????? | | ????????????????????????????????????????????????? | | ????????????????????????????????????????????????? | | ????????????????????????????????????????????????? | | ????????????????????????????????????????????????? | | ????????????????????????????????????????????????? | | ????????????????????????????????????????????????? | | ????????????????????????????????????????????????? | | | | | | | | | +----------------------------------------------------+ Best States ------------- Heat Dissipation 35 Energy Generation 15 Energy Capacity 170 Matter Stores 300 Matter Capacity 300 Sight Range 16 Robot Scan Range 14 Terrain Scan Density 10 Evasion (%) 42 Recoil Reduction 2 Item Schematics ----------------- None Robot Schematics ------------------ None Fabricated ------------ Nothing Repaired ---------- Nothing Alien Tech Used ----------------- None Achievements -------------- None Challenges ------------ None Game ------ Seed CoordinationTrackerFalx Manual? 0 Play Time 00:26:49 Cumulative 196.4 hours Start 2025.05.06 @ 20:10:29 End 2025.05.21 @ 18:04:40 Sessions 2 Manual Loads 0 Difficulty Rogue Special Mode None Game No. 125 Rogue 121 Adventurer 4 Explorer 0 Win Type - Total 7 Types 6/0/1/0/0/0/0/0/0/0 Lore% 76 Gallery% 68 Achievement% 59 Wizard Run 0 Options --------- Layout 1 ASCII 0 Keyboard 1 Movement Vi Keybinds 1 Fullscreen 2 Font 24/Smallcaps Map View 50x35 Zoom Use 0% Tactical HUD 1 Map Filters NONE Filters NONE Steam 1 RUN: b16536f2-354d-4aba-b238-915ebf39922e